[Event "*** Titled Tuesday Blitz"]
[Site "Chess.com"]
[Date "2020.10.27"]
[Round "8"]
[White "Omk124"]
[Black "LubovMarkelova"]
[Result "0-1"]
[WhiteElo "2403"]
[BlackElo "2248"]
[TimeControl "180+1"]
[EndTime "11:29:01 PDT"]
[Termination "LubovMarkelova won by checkmate"]

1. e4 {[%clk 0:03:00.9]} 1... e5 {[%clk 0:02:58.6]} 2. Nf3 {[%clk 0:03:00.4]}
2... Nc6 {[%clk 0:02:58.1]} 3. Bc4 {[%clk 0:03:00.6]} 3... Bc5 {[%clk
0:02:57.3]} 4. c3 {[%clk 0:03:00.9]} 4... Nf6 {[%clk 0:02:56.4]} 5. d3 {[%clk
0:03:00.8]} 5... d6 {[%clk 0:02:55.4]} 6. b4 {[%clk 0:03:01.2]} 6... Bb6 {[%clk
0:02:54.9]} 7. a4 {[%clk 0:03:02.1]} 7... a6 {[%clk 0:02:55.4]} 8. Bg5 {[%clk
0:03:00.7]} 8... h6 {[%clk 0:02:54.9]} 9. Bh4 {[%clk 0:03:01.6]} 9... g5 {[%clk
0:02:55.1]} 10. Bg3 {[%clk 0:03:02]} 10... Bg4 {[%clk 0:02:49.6]} 11. Nbd2
{[%clk 0:03:01]} 11... Qe7 {[%clk 0:02:43.4]} 12. Qb3 {[%clk 0:02:54.4]} 12...
Nh5 {[%clk 0:02:36.2]} 13. a5 {[%clk 0:02:51.9]} 13... Ba7 {[%clk 0:02:29.9]}
14. Qa4 {[%clk 0:02:43.9]} 14... Nf4 {[%clk 0:02:11.1]} 15. Bxf4 {[%clk
0:02:26]} 15... gxf4 {[%clk 0:02:09.7]} 16. Bxa6 {[%clk 0:02:26.4]} 16... Bd7
{[%clk 0:01:51.1]} 17. Bxb7 {[%clk 0:02:07.6]} 17... Nd8 {[%clk 0:01:49.9]} 18.
Bxa8 {[%clk 0:01:58.1]} 18... Bxa4 {[%clk 0:01:48.8]} 19. Rxa4 {[%clk 0:01:59]}
19... O-O {[%clk 0:01:47.3]} 20. Bd5 {[%clk 0:01:56.3]} 20... c6 {[%clk
0:01:44]} 21. Bb3 {[%clk 0:01:54.2]} 21... Ne6 {[%clk 0:01:43.3]} 22. Ke2 {[%clk
0:01:50]} 22... Kh8 {[%clk 0:01:37.6]} 23. Rha1 {[%clk 0:01:49.7]} 23... f5
{[%clk 0:01:30.1]} 24. Bc2 {[%clk 0:01:34.1]} 24... Nc7 {[%clk 0:01:26]} 25. c4
{[%clk 0:01:33.2]} 25... d5 {[%clk 0:01:23.8]} 26. Rb1 {[%clk 0:01:22.3]} 26...
fxe4 {[%clk 0:01:19.8]} 27. dxe4 {[%clk 0:01:21.8]} 27... dxc4 {[%clk 0:01:08]}
28. Nxc4 {[%clk 0:01:22.2]} 28... Nb5 {[%clk 0:01:08.5]} 29. Nfxe5 {[%clk
0:01:19.4]} 29... Qe6 {[%clk 0:00:39.6]} 30. Raa1 {[%clk 0:00:39.8]} 30... Bd4
{[%clk 0:00:34.8]} 31. Nf3 {[%clk 0:00:16.6]} 31... Qxc4+ {[%clk 0:00:27.7]} 32.
Bd3 {[%clk 0:00:16.7]} 32... Nc3+ {[%clk 0:00:27.5]} 33. Kd2 {[%clk 0:00:16.8]}
33... Nxb1+ {[%clk 0:00:27.4]} 34. Rxb1 {[%clk 0:00:17.7]} 34... Qc3+ {[%clk
0:00:23.4]} 35. Ke2 {[%clk 0:00:18.2]} 35... Rd8 {[%clk 0:00:20.8]} 36. a6
{[%clk 0:00:18.7]} 36... Ba7 {[%clk 0:00:18.9]} 37. Rd1 {[%clk 0:00:18.6]} 37...
Qb2+ {[%clk 0:00:17.8]} 38. Kf1 {[%clk 0:00:18.2]} 38... Qxf2# {[%clk
0:00:16.4]} 0-1

[Event "*** Titled Tuesday Blitz"]
[Site "Chess.com"]
[Date "2020.10.27"]
[Round "8"]
[White "gagtemp"]
[Black "beto-betun"]
[Result "0-1"]
[WhiteElo "1965"]
[BlackElo "2201"]
[TimeControl "180+1"]
[EndTime "11:29:02 PDT"]
[Termination "beto-betun won by checkmate"]

1. e4 {[%clk 0:03:00.9]} 1... c5 {[%clk 0:02:53.2]} 2. Nf3 {[%clk 0:03:00.6]}
2... d6 {[%clk 0:02:52.6]} 3. d4 {[%clk 0:03:01.1]} 3... cxd4 {[%clk 0:02:52.3]}
4. Nxd4 {[%clk 0:03:02]} 4... Nf6 {[%clk 0:02:51.1]} 5. Nc3 {[%clk 0:03:01.9]}
5... a6 {[%clk 0:02:50.1]} 6. Be3 {[%clk 0:03:02.2]} 6... e5 {[%clk 0:02:49.5]}
7. Nb3 {[%clk 0:03:02.6]} 7... Be7 {[%clk 0:02:47.8]} 8. f3 {[%clk 0:03:03]}
8... h5 {[%clk 0:02:42.4]} 9. Be2 {[%clk 0:03:02]} 9... Be6 {[%clk 0:02:40.3]}
10. O-O {[%clk 0:03:00.3]} 10... Nbd7 {[%clk 0:02:38]} 11. Nd5 {[%clk
0:03:00.3]} 11... Nxd5 {[%clk 0:02:32.9]} 12. exd5 {[%clk 0:03:01.2]} 12... Bf5
{[%clk 0:02:33]} 13. Qd2 {[%clk 0:02:55]} 13... h4 {[%clk 0:02:30.6]} 14. Na5
{[%clk 0:02:51.2]} 14... Qc7 {[%clk 0:02:26.4]} 15. c4 {[%clk 0:02:49.8]} 15...
h3 {[%clk 0:02:21.6]} 16. g3 {[%clk 0:02:42.2]} 16... O-O {[%clk 0:02:06.2]} 17.
b4 {[%clk 0:02:41.6]} 17... Nf6 {[%clk 0:02:03.8]} 18. Nb3 {[%clk 0:02:26]}
18... b6 {[%clk 0:01:59.7]} 19. a4 {[%clk 0:02:24.8]} 19... Rfc8 {[%clk
0:01:49.8]} 20. a5 {[%clk 0:02:22.5]} 20... b5 {[%clk 0:01:47.3]} 21. cxb5
{[%clk 0:02:17.8]} 21... axb5 {[%clk 0:01:47.1]} 22. Rac1 {[%clk 0:02:15.7]}
22... Qb7 {[%clk 0:01:42.6]} 23. Rfd1 {[%clk 0:01:57.9]} 23... Rxc1 {[%clk
0:01:37.3]} 24. Nxc1 {[%clk 0:01:57.2]} 24... Rc8 {[%clk 0:01:34.8]} 25. Bd3
{[%clk 0:01:52.6]} 25... Bxd3 {[%clk 0:01:27.8]} 26. Qxd3 {[%clk 0:01:50.8]}
26... Rc4 {[%clk 0:01:27.5]} 27. Na2 {[%clk 0:01:28]} 27... Qc8 {[%clk 0:01:12]}
28. Rc1 {[%clk 0:01:24.7]} 28... Bd8 {[%clk 0:01:10.4]} 29. Rxc4 {[%clk
0:01:22.5]} 29... bxc4 {[%clk 0:01:09.9]} 30. Qd2 {[%clk 0:01:17.7]} 30... Qb7
{[%clk 0:01:09.6]} 31. Nc3 {[%clk 0:00:44.1]} 31... Qxb4 {[%clk 0:01:07.3]} 32.
a6 {[%clk 0:00:43.3]} 32... Bb6 {[%clk 0:01:05.7]} 33. a7 {[%clk 0:00:37.3]}
33... Bxa7 {[%clk 0:00:50.9]} 34. Bxa7 {[%clk 0:00:35.8]} 34... Nxd5 {[%clk
0:00:50.5]} 35. Qxd5 {[%clk 0:00:22.6]} 35... Qxc3 {[%clk 0:00:50.3]} 36. Qa8+
{[%clk 0:00:20.3]} 36... Kh7 {[%clk 0:00:46.8]} 37. Qe4+ {[%clk 0:00:20.2]}
37... g6 {[%clk 0:00:41.7]} 38. Qh4+ {[%clk 0:00:19.5]} 38... Kg7 {[%clk
0:00:32.9]} 39. Bb6 {[%clk 0:00:12.7]} 39... Qe1# {[%clk 0:00:32.4]} 0-1

[Event "*** Titled Tuesday Blitz"]
[Site "Chess.com"]
[Date "2020.10.27"]
[Round "8"]
[White "penguingm1"]
[Black "esapunov"]
[Result "0-1"]
[WhiteElo "2809"]
[BlackElo "2688"]
[TimeControl "180+1"]
[EndTime "11:29:05 PDT"]
[Termination "esapunov won on time"]

1. d4 {[%clk 0:03:00.9]} 1... Nf6 {[%clk 0:02:59.7]} 2. c4 {[%clk 0:02:50.9]}
2... g6 {[%clk 0:02:59.5]} 3. f3 {[%clk 0:02:50.5]} 3... Bg7 {[%clk 0:02:59.3]}
4. e4 {[%clk 0:02:50.4]} 4... O-O {[%clk 0:02:59.8]} 5. Nc3 {[%clk 0:02:50.9]}
5... d6 {[%clk 0:03:00]} 6. Nge2 {[%clk 0:02:41.2]} 6... Nc6 {[%clk 0:02:59.9]}
7. Be3 {[%clk 0:02:40.5]} 7... a6 {[%clk 0:02:59.9]} 8. Qd2 {[%clk 0:02:39.7]}
8... Rb8 {[%clk 0:02:59.9]} 9. Rc1 {[%clk 0:02:40]} 9... Bd7 {[%clk 0:02:59.7]}
10. Nd1 {[%clk 0:02:40.3]} 10... Re8 {[%clk 0:02:59.3]} 11. Nf2 {[%clk
0:02:40.3]} 11... b5 {[%clk 0:02:59.7]} 12. c5 {[%clk 0:02:40.7]} 12... dxc5
{[%clk 0:03:00.2]} 13. Rxc5 {[%clk 0:02:41.6]} 13... e5 {[%clk 0:03:00.9]} 14.
d5 {[%clk 0:02:42.3]} 14... Ne7 {[%clk 0:03:01.2]} 15. Nd3 {[%clk 0:01:47.3]}
15... c6 {[%clk 0:02:58.8]} 16. dxc6 {[%clk 0:00:27.5]} 16... Nxc6 {[%clk
0:02:58.1]} 17. Rc1 {[%clk 0:00:27.6]} 17... Bf8 {[%clk 0:02:26.1]} 18. Nc5
{[%clk 0:00:25.3]} 18... Bxc5 {[%clk 0:02:25.5]} 19. Bxc5 {[%clk 0:00:26.2]}
19... Be6 {[%clk 0:02:23.3]} 20. b3 {[%clk 0:00:12.8]} 20... Rc8 {[%clk
0:02:16.7]} 21. Qxd8 {[%clk 0:00:10.1]} 21... Rexd8 {[%clk 0:02:15.6]} 22. Ba3
{[%clk 0:00:07.2]} 22... b4 {[%clk 0:02:01.6]} 23. Bb2 {[%clk 0:00:06.9]} 23...
a5 {[%clk 0:02:01.8]} 24. Rc5 {[%clk 0:00:05.4]} 24... Nd7 {[%clk 0:01:58]} 25.
Rc2 {[%clk 0:00:03.8]} 25... a4 {[%clk 0:01:48.7]} 26. Nc1 {[%clk 0:00:03.9]}
26... a3 {[%clk 0:01:44.6]} 27. Ba1 {[%clk 0:00:03.8]} 27... Nd4 {[%clk
0:01:44.6]} 28. Rxc8 {[%clk 0:00:02.2]} 28... Rxc8 {[%clk 0:01:44.5]} 29. Bxd4
{[%clk 0:00:01.8]} 29... Rxc1+ {[%clk 0:01:40.2]} 30. Kd2 {[%clk 0:00:02.1]}
30... Rb1 {[%clk 0:01:17.1]} 31. Kc2 {[%clk 0:00:02.4]} 31... Re1 {[%clk
0:01:16.8]} 32. Kd2 {[%clk 0:00:02.8]} 32... Rb1 {[%clk 0:01:09.6]} 33. Kc2
{[%clk 0:00:02.8]} 33... Re1 {[%clk 0:01:06.1]} 34. Kd2 {[%clk 0:00:01.7]} 34...
exd4 {[%clk 0:00:49.1]} 35. Kxe1 {[%clk 0:00:01.8]} 35... Bxb3 {[%clk
0:00:49.8]} 36. Kd2 {[%clk 0:00:01.1]} 36... Bxa2 {[%clk 0:00:49.2]} 37. Bb5
{[%clk 0:00:01.7]} 37... Be6 {[%clk 0:00:46.3]} 38. Kd3 {[%clk 0:00:01.9]} 38...
b3 {[%clk 0:00:45.6]} 39. Kxd4 {[%clk 0:00:02.5]} 39... b2 {[%clk 0:00:45.6]}
40. Kc3 {[%clk 0:00:03.1]} 40... Nb6 {[%clk 0:00:40.7]} 41. Bd3 {[%clk
0:00:02.8]} 41... Nc4 {[%clk 0:00:34.9]} 42. Kb4 {[%clk 0:00:01.3]} 42... a2
{[%clk 0:00:32.6]} 0-1

[Event "*** Titled Tuesday Blitz"]
[Site "Chess.com"]
[Date "2020.10.27"]
[Round "8"]
[White "Pultis"]
[Black "Smirnov_Pavel"]
[Result "0-1"]
[WhiteElo "2715"]
[BlackElo "2860"]
[TimeControl "180+1"]
[EndTime "11:29:07 PDT"]
[Termination "Smirnov_Pavel won on time"]

1. b3 {[%clk 0:03:00.9]} 1... e5 {[%clk 0:02:16.2]} 2. Bb2 {[%clk 0:03:01.8]}
2... Nc6 {[%clk 0:02:15.6]} 3. e3 {[%clk 0:03:02.1]} 3... Nf6 {[%clk 0:02:15.6]}
4. Bb5 {[%clk 0:03:01.5]} 4... Bd6 {[%clk 0:02:15.3]} 5. Na3 {[%clk 0:03:00.1]}
5... Be7 {[%clk 0:02:15.1]} 6. Be2 {[%clk 0:03:00.3]} 6... O-O {[%clk
0:02:13.6]} 7. Nc4 {[%clk 0:02:59]} 7... e4 {[%clk 0:02:13]} 8. Nh3 {[%clk
0:02:56.9]} 8... d5 {[%clk 0:02:11.6]} 9. Ne5 {[%clk 0:02:57.1]} 9... Nxe5
{[%clk 0:02:10.3]} 10. Bxe5 {[%clk 0:02:58]} 10... Bd6 {[%clk 0:02:06.9]} 11.
Bb2 {[%clk 0:02:58.4]} 11... c5 {[%clk 0:02:03.8]} 12. d3 {[%clk 0:02:55.8]}
12... Qe7 {[%clk 0:02:03.4]} 13. dxe4 {[%clk 0:02:53.5]} 13... dxe4 {[%clk
0:02:02.3]} 14. Nf4 {[%clk 0:02:53]} 14... Be5 {[%clk 0:01:46.8]} 15. Qc1 {[%clk
0:02:52.6]} 15... g5 {[%clk 0:01:43.1]} 16. Nh3 {[%clk 0:02:35.3]} 16... h6
{[%clk 0:01:42.2]} 17. Ng1 {[%clk 0:02:18]} 17... Bf5 {[%clk 0:01:37.8]} 18. Bc4
{[%clk 0:02:12]} 18... a6 {[%clk 0:01:29.3]} 19. a4 {[%clk 0:02:10]} 19... Rad8
{[%clk 0:01:26.2]} 20. Ne2 {[%clk 0:02:08.3]} 20... Ng4 {[%clk 0:01:14]} 21. Ng3
{[%clk 0:02:01.1]} 21... Bg6 {[%clk 0:01:12.2]} 22. Be2 {[%clk 0:01:28.7]} 22...
Nxf2 {[%clk 0:01:02]} 23. O-O {[%clk 0:01:20.7]} 23... Nd3 {[%clk 0:00:51.2]}
24. cxd3 {[%clk 0:01:14.8]} 24... exd3 {[%clk 0:00:51.2]} 25. Bxe5 {[%clk
0:00:28]} 25... dxe2 {[%clk 0:00:50.7]} 26. Qb2 {[%clk 0:00:28.3]} 26... exf1=Q+
{[%clk 0:00:46.9]} 27. Rxf1 {[%clk 0:00:29.2]} 27... Kh7 {[%clk 0:00:44.2]} 28.
e4 {[%clk 0:00:25.3]} 28... Qe6 {[%clk 0:00:35.5]} 29. Bc3 {[%clk 0:00:13.1]}
29... Rd3 {[%clk 0:00:30.9]} 30. Rf6 {[%clk 0:00:06.4]} 30... Rd1+ {[%clk
0:00:29.4]} 31. Kf2 {[%clk 0:00:06.3]} 31... Qd7 {[%clk 0:00:20.9]} 32. Nf5
{[%clk 0:00:03.8]} 32... Qd3 {[%clk 0:00:19.4]} 33. Be1 {[%clk 0:00:03.3]} 33...
Qxe4 {[%clk 0:00:18]} 34. Ne3 {[%clk 0:00:03.3]} 34... Rxe1 {[%clk 0:00:16.5]}
0-1

[Event "*** Titled Tuesday Blitz"]
[Site "Chess.com"]
[Date "2020.10.27"]
[Round "8"]
[White "MIJuanReyesRosa"]
[Black "queen_iryna"]
[Result "0-1"]
[WhiteElo "2085"]
[BlackElo "2299"]
[TimeControl "180+1"]
[EndTime "11:29:09 PDT"]
[Termination "queen_iryna won on time"]

1. d4 {[%clk 0:03:00.9]} 1... d6 {[%clk 0:02:59.7]} 2. c4 {[%clk 0:02:58.3]}
2... e5 {[%clk 0:02:59.2]} 3. Nf3 {[%clk 0:02:40.4]} 3... e4 {[%clk 0:02:57.7]}
4. Nfd2 {[%clk 0:02:39.4]} 4... f5 {[%clk 0:02:55]} 5. e3 {[%clk 0:02:38.3]}
5... Nf6 {[%clk 0:02:48.5]} 6. Be2 {[%clk 0:02:38.8]} 6... g6 {[%clk 0:02:45.4]}
7. O-O {[%clk 0:02:38.4]} 7... Bg7 {[%clk 0:02:45.4]} 8. Nc3 {[%clk 0:02:38.8]}
8... c6 {[%clk 0:02:44.7]} 9. b4 {[%clk 0:02:29.8]} 9... O-O {[%clk 0:02:42.3]}
10. c5 {[%clk 0:02:25.2]} 10... d5 {[%clk 0:02:39.2]} 11. a4 {[%clk 0:02:24.3]}
11... g5 {[%clk 0:02:37.2]} 12. Qb3 {[%clk 0:02:23]} 12... f4 {[%clk 0:02:32.6]}
13. Ndxe4 {[%clk 0:02:17.6]} 13... Nxe4 {[%clk 0:02:28.5]} 14. Nxe4 {[%clk
0:02:17.4]} 14... Kh8 {[%clk 0:02:15.8]} 15. Nd6 {[%clk 0:02:14.3]} 15... Nd7
{[%clk 0:01:51.5]} 16. exf4 {[%clk 0:02:13.1]} 16... gxf4 {[%clk 0:01:50.5]} 17.
Bg4 {[%clk 0:02:02.2]} 17... Nxc5 {[%clk 0:01:34.1]} 18. bxc5 {[%clk 0:01:47.1]}
18... Bxg4 {[%clk 0:01:33.9]} 19. Qxb7 {[%clk 0:01:42.2]} 19... f3 {[%clk
0:01:02.9]} 20. Nf7+ {[%clk 0:01:35.3]} 20... Rxf7 {[%clk 0:01:02.6]} 21. Qxf7
{[%clk 0:01:35.2]} 21... fxg2 {[%clk 0:01:02.2]} 22. Re1 {[%clk 0:01:24.7]}
22... Bxd4 {[%clk 0:00:44.4]} 23. Re7 {[%clk 0:01:06]} 23... Qg8 {[%clk
0:00:41.2]} 24. Qxg8+ {[%clk 0:00:37.6]} 24... Kxg8 {[%clk 0:00:42.1]} 25. Ra3
{[%clk 0:00:30.5]} 25... Bxc5 {[%clk 0:00:38.9]} 26. Rg3 {[%clk 0:00:11]} 26...
Bxe7 {[%clk 0:00:38.2]} 27. Rxg4+ {[%clk 0:00:11.4]} 27... Kf7 {[%clk
0:00:38.8]} 28. Kxg2 {[%clk 0:00:10.2]} 28... Rg8 {[%clk 0:00:33.5]} 29. Rxg8
{[%clk 0:00:08.3]} 29... Kxg8 {[%clk 0:00:34.4]} 30. Kf3 {[%clk 0:00:08.5]}
30... Kf7 {[%clk 0:00:34.5]} 31. Be3 {[%clk 0:00:05.2]} 31... a6 {[%clk
0:00:33.4]} 32. Bb6 {[%clk 0:00:04.6]} 32... Ke6 {[%clk 0:00:32.7]} 33. h3
{[%clk 0:00:04.3]} 33... c5 {[%clk 0:00:31.5]} 34. Ke3 {[%clk 0:00:03.6]} 34...
c4 {[%clk 0:00:23.9]} 35. f3 {[%clk 0:00:01.8]} 35... Bf6 {[%clk 0:00:22.9]} 0-1

[Event "*** Titled Tuesday Blitz"]
[Site "Chess.com"]
[Date "2020.10.27"]
[Round "8"]
[White "PhileKhoob"]
[Black "AIROPITO7"]
[Result "0-1"]
[WhiteElo "2463"]
[BlackElo "2600"]
[TimeControl "180+1"]
[EndTime "11:29:10 PDT"]
[Termination "AIROPITO7 won by resignation"]

1. e4 {[%clk 0:03:00.9]} 1... Nc6 {[%clk 0:02:59.9]} 2. Nf3 {[%clk 0:02:59.8]}
2... d6 {[%clk 0:02:56.1]} 3. d4 {[%clk 0:02:59.9]} 3... g6 {[%clk 0:02:56.5]}
4. Nc3 {[%clk 0:02:58.8]} 4... Bg7 {[%clk 0:02:56.7]} 5. Be3 {[%clk 0:02:59.4]}
5... Bg4 {[%clk 0:02:56.5]} 6. Be2 {[%clk 0:02:59.4]} 6... e5 {[%clk 0:02:55.7]}
7. d5 {[%clk 0:02:55]} 7... Bxf3 {[%clk 0:02:55.5]} 8. Bxf3 {[%clk 0:02:51.6]}
8... Nd4 {[%clk 0:02:55.4]} 9. Bxd4 {[%clk 0:02:46.4]} 9... exd4 {[%clk
0:02:55.6]} 10. Ne2 {[%clk 0:02:46.3]} 10... Qf6 {[%clk 0:02:53.2]} 11. O-O
{[%clk 0:02:45.1]} 11... Ne7 {[%clk 0:02:49.8]} 12. Qd3 {[%clk 0:02:44]} 12...
O-O {[%clk 0:02:47.8]} 13. Rad1 {[%clk 0:02:43.2]} 13... c5 {[%clk 0:02:48.1]}
14. dxc6 {[%clk 0:02:38.9]} 14... Nxc6 {[%clk 0:02:48.3]} 15. Ng3 {[%clk
0:01:53.6]} 15... Ne5 {[%clk 0:02:44.4]} 16. Qe2 {[%clk 0:01:52.9]} 16... Rac8
{[%clk 0:02:42.5]} 17. Rd2 {[%clk 0:01:44.3]} 17... Rc5 {[%clk 0:02:39.9]} 18.
Bg4 {[%clk 0:01:36.8]} 18... Qf4 {[%clk 0:02:29.7]} 19. Bh3 {[%clk 0:01:32]}
19... b5 {[%clk 0:02:06]} 20. Rfd1 {[%clk 0:01:31.5]} 20... Nc4 {[%clk
0:02:05.2]} 21. Rd3 {[%clk 0:01:22.4]} 21... Nxb2 {[%clk 0:02:01.3]} 22. Rf3
{[%clk 0:01:22.9]} 22... Qe5 {[%clk 0:01:55.3]} 23. Rb1 {[%clk 0:01:23.4]} 23...
Nc4 {[%clk 0:01:54.4]} 24. Nf1 {[%clk 0:01:17.6]} 24... Bh6 {[%clk 0:01:49.2]}
25. g3 {[%clk 0:01:14.7]} 25... Na3 {[%clk 0:01:43.6]} 26. Rb2 {[%clk
0:01:12.3]} 26... Bc1 {[%clk 0:01:38]} 27. Rbb3 {[%clk 0:00:55.6]} 27... Nc4
{[%clk 0:01:20.9]} 28. Rfd3 {[%clk 0:00:48.1]} 28... Bh6 {[%clk 0:01:18.5]} 29.
f4 {[%clk 0:00:47.7]} 29... Qf6 {[%clk 0:01:13.5]} 30. Nd2 {[%clk 0:00:42.3]}
30... Bg7 {[%clk 0:01:12.3]} 31. Nf3 {[%clk 0:00:40.4]} 31... a5 {[%clk
0:00:58.9]} 32. Rb1 {[%clk 0:00:36.3]} 32... b4 {[%clk 0:00:54.5]} 33. Nxd4
{[%clk 0:00:29.4]} 33... Na3 {[%clk 0:00:54.7]} 34. Rc1 {[%clk 0:00:27.3]} 34...
Qd8 {[%clk 0:00:54.8]} 35. Kg2 {[%clk 0:00:16.6]} 35... Qb6 {[%clk 0:00:52.1]}
36. Nb3 {[%clk 0:00:15.9]} 36... Rc7 {[%clk 0:00:49.1]} 37. Bg4 {[%clk
0:00:14.8]} 37... Re7 {[%clk 0:00:49.1]} 38. Bf3 {[%clk 0:00:14.9]} 38... Rc8
{[%clk 0:00:49.3]} 39. Qd2 {[%clk 0:00:13.8]} 39... Rec7 {[%clk 0:00:49.4]} 40.
Rxd6 {[%clk 0:00:13.2]} 40... Qb8 {[%clk 0:00:45.8]} 41. Bd1 {[%clk 0:00:10.1]}
41... Nc4 {[%clk 0:00:43]} 42. Qd5 {[%clk 0:00:08.3]} 42... Nxd6 {[%clk
0:00:43.5]} 43. Qxd6 {[%clk 0:00:09.2]} 43... Rxc2+ {[%clk 0:00:38.7]} 44. Rxc2
{[%clk 0:00:07.7]} 44... Rxc2+ {[%clk 0:00:38.8]} 0-1

[Event "*** Titled Tuesday Blitz"]
[Site "Chess.com"]
[Date "2020.10.27"]
[Round "8"]
[White "CraiggoryC"]
[Black "Klavdia_Nik"]
[Result "1-0"]
[WhiteElo "2230"]
[BlackElo "2058"]
[TimeControl "180+1"]
[EndTime "11:29:10 PDT"]
[Termination "CraiggoryC won on time"]

1. e4 {[%clk 0:02:27.4]} 1... c5 {[%clk 0:02:48.2]} 2. Nf3 {[%clk 0:02:26.3]}
2... Nc6 {[%clk 0:02:46.3]} 3. d4 {[%clk 0:02:26.9]} 3... cxd4 {[%clk
0:02:46.7]} 4. Nxd4 {[%clk 0:02:26.5]} 4... Nf6 {[%clk 0:02:47.2]} 5. Nc3 {[%clk
0:02:26.9]} 5... d6 {[%clk 0:02:45.3]} 6. Bc4 {[%clk 0:02:25.4]} 6... a6 {[%clk
0:02:41]} 7. Nxc6 {[%clk 0:02:19.3]} 7... bxc6 {[%clk 0:02:40.3]} 8. e5 {[%clk
0:02:20]} 8... Ng4 {[%clk 0:02:20.8]} 9. e6 {[%clk 0:02:10.7]} 9... Ne5 {[%clk
0:02:14.2]} 10. exf7+ {[%clk 0:02:06.1]} 10... Nxf7 {[%clk 0:02:14]} 11. Bxf7+
{[%clk 0:01:33.4]} 11... Kxf7 {[%clk 0:02:13.3]} 12. Qf3+ {[%clk 0:01:33.9]}
12... Kg8 {[%clk 0:02:05.5]} 13. Qxc6 {[%clk 0:01:16.9]} 13... Rb8 {[%clk
0:01:59.6]} 14. Bf4 {[%clk 0:01:07]} 14... Bb7 {[%clk 0:01:54.2]} 15. Qc4+
{[%clk 0:01:02.2]} 15... d5 {[%clk 0:01:39]} 16. Qd4 {[%clk 0:00:54.6]} 16...
Rc8 {[%clk 0:01:28.4]} 17. O-O-O {[%clk 0:00:52.2]} 17... e6 {[%clk 0:01:26.2]}
18. Rhe1 {[%clk 0:00:42.2]} 18... Rc6 {[%clk 0:01:16.8]} 19. Be5 {[%clk
0:00:35]} 19... Qg5+ {[%clk 0:01:05.2]} 20. f4 {[%clk 0:00:35.2]} 20... Qg6
{[%clk 0:00:59.5]} 21. Rd3 {[%clk 0:00:32.8]} 21... Qf7 {[%clk 0:00:51.1]} 22.
Rg3 {[%clk 0:00:32.5]} 22... h6 {[%clk 0:00:47.8]} 23. f5 {[%clk 0:00:22.7]}
23... Rc4 {[%clk 0:00:36.4]} 24. fxe6 {[%clk 0:00:17.9]} 24... Qxe6 {[%clk
0:00:34.8]} 25. Qf2 {[%clk 0:00:12.4]} 25... Qf7 {[%clk 0:00:25.9]} 26. Rf3
{[%clk 0:00:12.2]} 26... Qe8 {[%clk 0:00:19.7]} 27. Bxg7 {[%clk 0:00:11.6]}
27... Qxe1+ {[%clk 0:00:04.9]} 28. Qxe1 {[%clk 0:00:11.6]} 28... Bxg7 {[%clk
0:00:05.8]} 29. Qe6+ {[%clk 0:00:11.4]} 29... Kh7 {[%clk 0:00:05.5]} 30. Qf5+
{[%clk 0:00:11.4]} 30... Kg8 {[%clk 0:00:05.2]} 31. Qf7+ {[%clk 0:00:11.7]}
31... Kh7 {[%clk 0:00:05.4]} 32. Qxb7 {[%clk 0:00:12.3]} 32... Re8 {[%clk
0:00:04.7]} 33. Qxd5 {[%clk 0:00:11.1]} 33... Rc7 {[%clk 0:00:01.3]} 34. Qf5+
{[%clk 0:00:10.7]} 1-0

[Event "*** Titled Tuesday Blitz"]
[Site "Chess.com"]
[Date "2020.10.27"]
[Round "8"]
[White "amintabatabaei"]
[Black "XDPS"]
[Result "1-0"]
[WhiteElo "2891"]
[BlackElo "2739"]
[TimeControl "180+1"]
[EndTime "11:29:11 PDT"]
[Termination "amintabatabaei won on time"]

1. b3 {[%clk 0:03:00.9]} 1... d5 {[%clk 0:02:57.1]} 2. Bb2 {[%clk 0:03:01.3]}
2... Bf5 {[%clk 0:02:56.4]} 3. Nf3 {[%clk 0:03:00.9]} 3... e6 {[%clk 0:02:55.2]}
4. g3 {[%clk 0:03:01.7]} 4... h6 {[%clk 0:02:55.1]} 5. Bg2 {[%clk 0:03:02.4]}
5... Nf6 {[%clk 0:02:55.3]} 6. O-O {[%clk 0:03:03.1]} 6... Be7 {[%clk
0:02:55.6]} 7. d3 {[%clk 0:03:03.8]} 7... O-O {[%clk 0:02:56.1]} 8. Nbd2 {[%clk
0:03:04.5]} 8... Bh7 {[%clk 0:02:56.2]} 9. Ne5 {[%clk 0:03:02]} 9... a5 {[%clk
0:02:55.1]} 10. a3 {[%clk 0:03:01.5]} 10... Nbd7 {[%clk 0:02:51.6]} 11. e4
{[%clk 0:02:58.8]} 11... Nxe5 {[%clk 0:02:44.4]} 12. Bxe5 {[%clk 0:02:59.7]}
12... c6 {[%clk 0:02:44.2]} 13. Qe2 {[%clk 0:02:58.1]} 13... Nd7 {[%clk
0:02:44.1]} 14. Bb2 {[%clk 0:02:58.1]} 14... Bf6 {[%clk 0:02:44.6]} 15. e5
{[%clk 0:02:52.4]} 15... Be7 {[%clk 0:02:44.6]} 16. f4 {[%clk 0:02:52.7]} 16...
a4 {[%clk 0:02:42.9]} 17. b4 {[%clk 0:02:40.3]} 17... c5 {[%clk 0:02:42.9]} 18.
c3 {[%clk 0:02:32.7]} 18... Qb6 {[%clk 0:02:28.2]} 19. Kh1 {[%clk 0:02:32.7]}
19... cxb4 {[%clk 0:02:20.2]} 20. cxb4 {[%clk 0:02:32.8]} 20... Qb5 {[%clk
0:02:18.8]} 21. Rf3 {[%clk 0:02:24.5]} 21... Rac8 {[%clk 0:02:04.6]} 22. Nf1
{[%clk 0:02:17.5]} 22... Rc6 {[%clk 0:01:58.8]} 23. Rd1 {[%clk 0:02:10.3]} 23...
Rfc8 {[%clk 0:01:58.3]} 24. Rd2 {[%clk 0:02:11]} 24... Nb8 {[%clk 0:01:35.3]}
25. g4 {[%clk 0:02:09.7]} 25... Na6 {[%clk 0:01:31.4]} 26. Bd4 {[%clk
0:00:38.3]} 26... Rc1 {[%clk 0:01:25.9]} 27. f5 {[%clk 0:00:38.4]} 27... Bg5
{[%clk 0:01:17.7]} 28. Be3 {[%clk 0:00:38.8]} 28... Bxe3 {[%clk 0:00:45.5]} 29.
Qxe3 {[%clk 0:00:39.7]} 29... Nxb4 {[%clk 0:00:08.4]} 30. axb4 {[%clk
0:00:39.1]} 30... Qxb4 {[%clk 0:00:08.4]} 31. f6 {[%clk 0:00:38.5]} 31... a3
{[%clk 0:00:06.3]} 32. fxg7 {[%clk 0:00:38.3]} 32... Kxg7 {[%clk 0:00:04.6]} 33.
Rdf2 {[%clk 0:00:36.5]} 33... Bg6 {[%clk 0:00:04.9]} 34. Rh3 {[%clk 0:00:33.9]}
34... Rh8 {[%clk 0:00:03.7]} 35. Qf3 {[%clk 0:00:27.8]} 35... Qe7 {[%clk
0:00:04.1]} 36. d4 {[%clk 0:00:20.7]} 36... Ra8 {[%clk 0:00:01.9]} 37. Qf4
{[%clk 0:00:20.3]} 1-0